[Event "Early-Titled-Tuesday-Blitz-March-26-2024"]
[Site "Chess.com"]
[Date "2024.03.26"]
[Round "7"]
[White "jefferyx"]
[Black "Mikhail_Bryakin"]
[Result "1-0"]
[WhiteElo "3095"]
[BlackElo "2851"]
[TimeControl "180+1"]
[EndTime "9:14:12 PDT"]
[Termination "jefferyx won by resignation"]

1. d4 {[%clk 0:03:00.9]} 1... e6 {[%clk 0:02:55.1]} 2. e4 {[%clk 0:03:00.7]}
2... d5 {[%clk 0:02:55]} 3. Nc3 {[%clk 0:02:58.6]} 3... Nf6 {[%clk 0:02:55.4]}
4. Bg5 {[%clk 0:02:58.2]} 4... dxe4 {[%clk 0:02:53.9]} 5. Nxe4 {[%clk
0:02:58.2]} 5... Be7 {[%clk 0:02:54.4]} 6. Bxf6 {[%clk 0:02:58.6]} 6... gxf6
{[%clk 0:02:54.9]} 7. Nc3 {[%clk 0:02:59.1]} 7... b6 {[%clk 0:02:42.4]} 8. Qf3
{[%clk 0:02:58.5]} 8... c6 {[%clk 0:02:42]} 9. O-O-O {[%clk 0:02:58.6]} 9... Bb7
{[%clk 0:02:42.4]} 10. g4 {[%clk 0:02:51.6]} 10... Nd7 {[%clk 0:02:41.9]} 11.
Bg2 {[%clk 0:02:51.7]} 11... Qc7 {[%clk 0:02:42.6]} 12. Nge2 {[%clk 0:02:51.9]}
12... O-O-O {[%clk 0:02:34]} 13. Ng3 {[%clk 0:02:52]} 13... Kb8 {[%clk
0:02:31.9]} 14. Rhe1 {[%clk 0:02:51.8]} 14... Bd6 {[%clk 0:02:25.5]} 15. Kb1
{[%clk 0:02:50.8]} 15... Rhe8 {[%clk 0:01:57.5]} 16. h4 {[%clk 0:02:43.6]} 16...
Rg8 {[%clk 0:01:56.1]} 17. Nh5 {[%clk 0:02:40.4]} 17... Be7 {[%clk 0:01:52.9]}
18. Qe2 {[%clk 0:02:33.5]} 18... Rde8 {[%clk 0:01:40.1]} 19. Be4 {[%clk
0:02:31.1]} 19... h6 {[%clk 0:01:35.7]} 20. Qf3 {[%clk 0:02:19.8]} 20... Rh8
{[%clk 0:01:30.1]} 21. a3 {[%clk 0:02:16.5]} 21... Bd8 {[%clk 0:01:29.3]} 22.
Na2 {[%clk 0:01:48]} 22... a5 {[%clk 0:01:27]} 23. Nc3 {[%clk 0:01:48]} 23...
Reg8 {[%clk 0:01:12.3]} 24. Rg1 {[%clk 0:01:47]} 24... Qc8 {[%clk 0:01:07.8]}
25. Bd3 {[%clk 0:01:11.3]} 25... Qc7 {[%clk 0:01:05]} 26. Ne4 {[%clk 0:01:10.8]}
26... Rg6 {[%clk 0:01:00.2]} 27. Qe3 {[%clk 0:01:07.8]} 27... Rgg8 {[%clk
0:00:53]} 28. Nd2 {[%clk 0:00:43]} 28... Qd6 {[%clk 0:00:47.9]} 29. Rde1 {[%clk
0:00:40.5]} 29... Ka7 {[%clk 0:00:46]} 30. Nc4 {[%clk 0:00:37.8]} 30... Qd5
{[%clk 0:00:42.9]} 31. Nf4 {[%clk 0:00:35.8]} 31... Qb5 {[%clk 0:00:37.2]} 32.
Nd6 {[%clk 0:00:35.8]} 32... Qa4 {[%clk 0:00:37.5]} 33. Nxf7 {[%clk 0:00:35.8]}
33... Rh7 {[%clk 0:00:36.3]} 34. Bxh7 {[%clk 0:00:35.4]} 1-0

[Event "Early-Titled-Tuesday-Blitz-March-26-2024"]
[Site "Chess.com"]
[Date "2024.03.26"]
[Round "7"]
[White "kingofthenil"]
[Black "bazar-wokzal"]
[Result "1-0"]
[WhiteElo "2782"]
[BlackElo "2573"]
[TimeControl "180+1"]
[EndTime "9:14:16 PDT"]
[Termination "kingofthenil won by resignation"]

1. d4 {[%clk 0:02:57.2]} 1... Nf6 {[%clk 0:02:58.7]} 2. Nc3 {[%clk 0:02:57.1]}
2... d5 {[%clk 0:02:50.8]} 3. Bg5 {[%clk 0:02:56.7]} 3... Nbd7 {[%clk
0:02:48.7]} 4. h4 {[%clk 0:02:47.7]} 4... c6 {[%clk 0:02:47.5]} 5. Qd2 {[%clk
0:02:39.5]} 5... b5 {[%clk 0:02:47.1]} 6. a3 {[%clk 0:02:31]} 6... a5 {[%clk
0:02:41.7]} 7. Nf3 {[%clk 0:02:25.8]} 7... Bb7 {[%clk 0:02:39.9]} 8. Qf4 {[%clk
0:02:10.4]} 8... b4 {[%clk 0:02:35.6]} 9. Na4 {[%clk 0:01:51.8]} 9... Ne4 {[%clk
0:02:34.4]} 10. h5 {[%clk 0:01:36]} 10... Qb8 {[%clk 0:02:04.1]} 11. Qxb8+
{[%clk 0:01:33]} 11... Rxb8 {[%clk 0:02:02.1]} 12. Bf4 {[%clk 0:01:33.1]} 12...
Ra8 {[%clk 0:01:59.1]} 13. e3 {[%clk 0:01:20.5]} 13... e6 {[%clk 0:01:58.1]} 14.
Bd3 {[%clk 0:01:21]} 14... Nd6 {[%clk 0:01:51.7]} 15. h6 {[%clk 0:01:09]} 15...
g6 {[%clk 0:01:44.9]} 16. Nc5 {[%clk 0:00:59]} 16... Nxc5 {[%clk 0:01:38.9]} 17.
dxc5 {[%clk 0:00:59.9]} 17... Nf5 {[%clk 0:01:32.5]} 18. axb4 {[%clk 0:00:51.3]}
18... axb4 {[%clk 0:01:31.2]} 19. Rxa8+ {[%clk 0:00:52.2]} 19... Bxa8 {[%clk
0:01:31.9]} 20. g4 {[%clk 0:00:53.1]} 20... Ne7 {[%clk 0:01:21.1]} 21. Be5
{[%clk 0:00:46.7]} 21... Rg8 {[%clk 0:01:20.7]} 22. Ng5 {[%clk 0:00:45.7]} 22...
f6 {[%clk 0:00:50.7]} 23. Bxf6 {[%clk 0:00:44.1]} 23... Nc8 {[%clk 0:00:49.6]}
24. Nxh7 {[%clk 0:00:28.8]} 24... Bxc5 {[%clk 0:00:49.3]} 25. Ng5 {[%clk
0:00:29.5]} 25... Be7 {[%clk 0:00:39.6]} 26. h7 {[%clk 0:00:26.2]} 26... Rf8
{[%clk 0:00:39]} 27. Bxe7 {[%clk 0:00:23.1]} 27... Kxe7 {[%clk 0:00:39]} 28.
h8=Q {[%clk 0:00:24]} 28... Rxh8 {[%clk 0:00:38.9]} 29. Rxh8 {[%clk 0:00:24.9]}
29... Nb6 {[%clk 0:00:39]} 30. Rb8 {[%clk 0:00:23.7]} 1-0

[Event "Early-Titled-Tuesday-Blitz-March-26-2024"]
[Site "Chess.com"]
[Date "2024.03.26"]
[Round "7"]
[White "PavelShkapenko"]
[Black "Slovineanu"]
[Result "1/2-1/2"]
[WhiteElo "2750"]
[BlackElo "2532"]
[TimeControl "180+1"]
[EndTime "9:14:16 PDT"]
[Termination "Game drawn by agreement"]

1. e4 {[%clk 0:02:52.3]} 1... e5 {[%clk 0:02:59]} 2. Nf3 {[%clk 0:02:51.4]} 2...
Nc6 {[%clk 0:02:58.9]} 3. g3 {[%clk 0:02:51.7]} 3... Bc5 {[%clk 0:02:53.6]} 4.
Bg2 {[%clk 0:02:49.2]} 4... Nge7 {[%clk 0:02:52.2]} 5. O-O {[%clk 0:02:46.6]}
5... d6 {[%clk 0:02:52]} 6. c3 {[%clk 0:02:46.3]} 6... a6 {[%clk 0:02:49.7]} 7.
d4 {[%clk 0:02:46.3]} 7... Ba7 {[%clk 0:02:49.6]} 8. dxe5 {[%clk 0:02:45.1]}
8... Nxe5 {[%clk 0:02:45.3]} 9. Nxe5 {[%clk 0:02:44.1]} 9... dxe5 {[%clk
0:02:45.5]} 10. Qxd8+ {[%clk 0:02:44.6]} 10... Kxd8 {[%clk 0:02:45.7]} 11. Nd2
{[%clk 0:02:44.7]} 11... Be6 {[%clk 0:02:37.5]} 12. Rd1 {[%clk 0:02:42.3]} 12...
Ke8 {[%clk 0:02:34.8]} 13. Bf1 {[%clk 0:02:37]} 13... f6 {[%clk 0:02:26.5]} 14.
Bc4 {[%clk 0:02:36.1]} 14... Kf7 {[%clk 0:02:26.3]} 15. Bxe6+ {[%clk 0:02:35.9]}
15... Kxe6 {[%clk 0:02:26.4]} 16. Nc4 {[%clk 0:02:36.4]} 16... Nc6 {[%clk
0:02:18.9]} 17. Ne3 {[%clk 0:02:29.4]} 17... Bxe3 {[%clk 0:02:17.8]} 18. Bxe3
{[%clk 0:02:29.4]} 18... Rhd8 {[%clk 0:02:14.8]} 19. Kf1 {[%clk 0:02:28.7]}
19... Rxd1+ {[%clk 0:02:13.6]} 20. Rxd1 {[%clk 0:02:28.8]} 20... Rd8 {[%clk
0:02:14.1]} 21. Rb1 {[%clk 0:02:29]} 21... b5 {[%clk 0:02:10.5]} 22. a4 {[%clk
0:02:27.5]} 22... b4 {[%clk 0:02:09.2]} 23. cxb4 {[%clk 0:02:25.5]} 23... Nxb4
{[%clk 0:02:08.8]} 24. Rc1 {[%clk 0:02:25.7]} 24... c6 {[%clk 0:01:34.8]} 25.
Ke2 {[%clk 0:02:24.9]} 25... Rb8 {[%clk 0:01:26]} 26. Rd1 {[%clk 0:02:17.9]}
26... Nc2 {[%clk 0:01:19.2]} 27. Bc5 {[%clk 0:02:14.1]} 27... Rxb2 {[%clk
0:01:18]} 28. Rd6+ {[%clk 0:02:11.6]} 28... Kf7 {[%clk 0:01:17.3]} 29. Kd3
{[%clk 0:02:01.9]} 29... Nd4 {[%clk 0:01:15.6]} 30. f4 {[%clk 0:01:50]} 30...
Rxh2 {[%clk 0:00:50.3]} 31. f5 {[%clk 0:01:44.4]} 31... g6 {[%clk 0:00:44.8]}
32. Bxd4 {[%clk 0:01:31.7]} 32... exd4 {[%clk 0:00:44.4]} 33. Rxc6 {[%clk
0:01:31.3]} 33... Rh3 {[%clk 0:00:41.8]} 34. Rxa6 {[%clk 0:01:26.8]} 34... Rxg3+
{[%clk 0:00:40.6]} 35. Kxd4 {[%clk 0:01:27.3]} 35... gxf5 {[%clk 0:00:38.6]} 36.
exf5 {[%clk 0:01:25.8]} 36... h5 {[%clk 0:00:36.1]} 37. Ra7+ {[%clk 0:01:24.5]}
37... Kg8 {[%clk 0:00:36.3]} 1/2-1/2

[Event "Early-Titled-Tuesday-Blitz-March-26-2024"]
[Site "Chess.com"]
[Date "2024.03.26"]
[Round "7"]
[White "Matibar"]
[Black "imdvb6307"]
[Result "1-0"]
[WhiteElo "2724"]
[BlackElo "2510"]
[TimeControl "180+1"]
[EndTime "9:14:28 PDT"]
[Termination "Matibar won on time"]

1. Nf3 {[%clk 0:03:00.9]} 1... d5 {[%clk 0:02:59.6]} 2. b3 {[%clk 0:03:00.1]}
2... Bg4 {[%clk 0:02:41.7]} 3. e3 {[%clk 0:02:58.8]} 3... e6 {[%clk 0:02:38.5]}
4. Bb2 {[%clk 0:02:57.9]} 4... Nd7 {[%clk 0:02:34.6]} 5. c4 {[%clk 0:02:58.1]}
5... c6 {[%clk 0:02:33.9]} 6. Nc3 {[%clk 0:02:58.3]} 6... Ngf6 {[%clk
0:02:25.4]} 7. h3 {[%clk 0:02:52.6]} 7... Bh5 {[%clk 0:02:01.7]} 8. d4 {[%clk
0:02:52.4]} 8... Ne4 {[%clk 0:01:55.5]} 9. a3 {[%clk 0:02:37.4]} 9... Bd6 {[%clk
0:01:39.6]} 10. Nxe4 {[%clk 0:02:30.6]} 10... dxe4 {[%clk 0:01:37.6]} 11. g4
{[%clk 0:02:31.2]} 11... exf3 {[%clk 0:01:33.7]} 12. gxh5 {[%clk 0:02:30]} 12...
Qa5+ {[%clk 0:01:30.5]} 13. Qd2 {[%clk 0:02:23.3]} 13... Qxh5 {[%clk 0:01:14.7]}
14. O-O-O {[%clk 0:02:23.4]} 14... O-O-O {[%clk 0:00:59]} 15. Rg1 {[%clk
0:02:19.6]} 15... Nf6 {[%clk 0:00:55.5]} 16. Qc2 {[%clk 0:02:09.2]} 16... Rhg8
{[%clk 0:00:23.9]} 17. Kb1 {[%clk 0:02:08.4]} 17... e5 {[%clk 0:00:22.9]} 18. d5
{[%clk 0:01:53.4]} 18... cxd5 {[%clk 0:00:22]} 19. cxd5+ {[%clk 0:01:54.3]}
19... Kb8 {[%clk 0:00:22.4]} 20. e4 {[%clk 0:01:44]} 20... Qh4 {[%clk
0:00:21.4]} 21. Bd3 {[%clk 0:01:24.7]} 21... Nd7 {[%clk 0:00:20.1]} 22. Rg3
{[%clk 0:01:15.8]} 22... Rc8 {[%clk 0:00:14.5]} 23. Qd2 {[%clk 0:01:15.3]} 23...
f6 {[%clk 0:00:11.3]} 24. Rxf3 {[%clk 0:01:12.4]} 24... g5 {[%clk 0:00:10.4]}
25. b4 {[%clk 0:01:07.1]} 25... Nb6 {[%clk 0:00:09.9]} 26. Rxf6 {[%clk
0:01:02.3]} 26... Rcd8 {[%clk 0:00:03.8]} 27. Rxd6 {[%clk 0:01:01.5]} 27... Rxd6
{[%clk 0:00:03.8]} 28. Bxe5 {[%clk 0:01:02.2]} 28... Nc8 {[%clk 0:00:03.4]} 29.
Qe3 {[%clk 0:00:59.7]} 29... Qh6 {[%clk 0:00:02.8]} 30. Qg3 {[%clk 0:00:58.8]}
30... Ka8 {[%clk 0:00:02.6]} 31. Bxd6 {[%clk 0:00:54]} 31... Nxd6 {[%clk
0:00:02.7]} 32. e5 {[%clk 0:00:54.7]} 32... Nf7 {[%clk 0:00:02.9]} 33. e6 {[%clk
0:00:53.9]} 1-0

[Event "Early-Titled-Tuesday-Blitz-March-26-2024"]
[Site "Chess.com"]
[Date "2024.03.26"]
[Round "7"]
[White "Yeritsyaan"]
[Black "ATM622"]
[Result "0-1"]
[WhiteElo "2651"]
[BlackElo "2511"]
[TimeControl "180+1"]
[EndTime "9:14:28 PDT"]
[Termination "ATM622 won by resignation"]

1. Nf3 {[%clk 0:02:58.2]} 1... Nf6 {[%clk 0:02:59.4]} 2. b3 {[%clk 0:02:56.4]}
2... g6 {[%clk 0:02:58.6]} 3. Bb2 {[%clk 0:02:56.9]} 3... Bg7 {[%clk 0:02:59.1]}
4. e4 {[%clk 0:02:56.7]} 4... d6 {[%clk 0:02:58.6]} 5. d3 {[%clk 0:02:56.3]}
5... e5 {[%clk 0:02:58.4]} 6. Nbd2 {[%clk 0:02:56.2]} 6... O-O {[%clk
0:02:56.1]} 7. g3 {[%clk 0:02:56]} 7... Re8 {[%clk 0:02:53.7]} 8. Bg2 {[%clk
0:02:56.4]} 8... Nbd7 {[%clk 0:02:51.3]} 9. O-O {[%clk 0:02:57.1]} 9... b6
{[%clk 0:02:51]} 10. a4 {[%clk 0:02:56.4]} 10... a5 {[%clk 0:02:50.8]} 11. Nc4
{[%clk 0:02:54.7]} 11... Ba6 {[%clk 0:02:48.3]} 12. h3 {[%clk 0:02:53]} 12...
Bxc4 {[%clk 0:02:47.9]} 13. bxc4 {[%clk 0:02:53.9]} 13... Nc5 {[%clk 0:02:45.2]}
14. Nd2 {[%clk 0:02:51.7]} 14... Qd7 {[%clk 0:02:42.1]} 15. f4 {[%clk
0:02:30.6]} 15... Nh5 {[%clk 0:02:35.6]} 16. f5 {[%clk 0:02:22.1]} 16... Nxg3
{[%clk 0:02:32.1]} 17. Rf3 {[%clk 0:02:21.6]} 17... Nh5 {[%clk 0:02:28.8]} 18.
Qf1 {[%clk 0:02:15.5]} 18... Nxa4 {[%clk 0:02:24.5]} 19. Bc1 {[%clk 0:02:10.9]}
19... Nf4 {[%clk 0:02:14.8]} 20. Nb3 {[%clk 0:02:05.4]} 20... g5 {[%clk
0:02:04.7]} 21. Kh2 {[%clk 0:01:50.3]} 21... Bf6 {[%clk 0:01:57.3]} 22. Rg3
{[%clk 0:01:44.8]} 22... Kh8 {[%clk 0:01:55]} 23. Bf3 {[%clk 0:01:41.3]} 23...
Nc5 {[%clk 0:01:46.1]} 24. Nxc5 {[%clk 0:01:39.1]} 24... bxc5 {[%clk 0:01:41.6]}
25. h4 {[%clk 0:01:39.8]} 25... Rg8 {[%clk 0:01:37.3]} 26. hxg5 {[%clk
0:01:36.4]} 26... Rxg5 {[%clk 0:01:36.4]} 27. Rxg5 {[%clk 0:01:28.6]} 27... Bxg5
{[%clk 0:01:33.3]} 28. Bd2 {[%clk 0:01:25.3]} 28... a4 {[%clk 0:01:27.6]} 29.
Qf2 {[%clk 0:01:21.5]} 29... f6 {[%clk 0:01:24.4]} 30. Kh1 {[%clk 0:00:32.2]}
30... Qg7 {[%clk 0:01:23.3]} 31. Qg3 {[%clk 0:00:29.9]} 31... Qh6+ {[%clk
0:01:19.9]} 32. Kg1 {[%clk 0:00:26.8]} 32... Nh3+ {[%clk 0:00:52.9]} 33. Kg2
{[%clk 0:00:22.2]} 33... Bxd2 {[%clk 0:00:52.9]} 34. Qxh3 {[%clk 0:00:22.1]}
34... Rg8+ {[%clk 0:00:52.4]} 35. Bg4 {[%clk 0:00:22]} 35... Qf4 {[%clk
0:00:51.5]} 0-1

[Event "Early-Titled-Tuesday-Blitz-March-26-2024"]
[Site "Chess.com"]
[Date "2024.03.26"]
[Round "7"]
[White "iAspet"]
[Black "Stanbad1"]
[Result "0-1"]
[WhiteElo "2473"]
[BlackElo "2658"]
[TimeControl "180+1"]
[EndTime "9:14:37 PDT"]
[Termination "Stanbad1 won by resignation"]

1. Nf3 {[%clk 0:02:55.1]} 1... Nf6 {[%clk 0:02:59.9]} 2. c4 {[%clk 0:02:54.8]}
2... g6 {[%clk 0:03:00.1]} 3. Nc3 {[%clk 0:02:53.6]} 3... Bg7 {[%clk 0:03:00.3]}
4. d4 {[%clk 0:02:54.2]} 4... d6 {[%clk 0:03:00.5]} 5. e4 {[%clk 0:02:54.1]}
5... O-O {[%clk 0:03:00.8]} 6. Be2 {[%clk 0:02:52.7]} 6... e5 {[%clk 0:03:00.8]}
7. d5 {[%clk 0:02:50.1]} 7... a5 {[%clk 0:03:00.4]} 8. Bg5 {[%clk 0:02:50.1]}
8... Na6 {[%clk 0:02:59.7]} 9. Nd2 {[%clk 0:02:49.5]} 9... Nc5 {[%clk
0:02:59.6]} 10. O-O {[%clk 0:02:46.6]} 10... h6 {[%clk 0:02:57.5]} 11. Be3
{[%clk 0:02:46.6]} 11... b6 {[%clk 0:02:55.2]} 12. a3 {[%clk 0:02:43.5]} 12...
Nh7 {[%clk 0:02:54.2]} 13. b4 {[%clk 0:02:42.5]} 13... Nd7 {[%clk 0:02:54]} 14.
Nb3 {[%clk 0:02:17.2]} 14... f5 {[%clk 0:02:50.6]} 15. f3 {[%clk 0:02:17.2]}
15... f4 {[%clk 0:02:50.1]} 16. Bf2 {[%clk 0:02:17.6]} 16... Rf7 {[%clk
0:02:46.6]} 17. c5 {[%clk 0:02:17.8]} 17... Bf8 {[%clk 0:02:29.9]} 18. cxb6
{[%clk 0:02:12.8]} 18... cxb6 {[%clk 0:02:21.3]} 19. Nb5 {[%clk 0:02:10.3]}
19... Ba6 {[%clk 0:02:19.8]} 20. Rc1 {[%clk 0:02:04.2]} 20... Ndf6 {[%clk
0:02:18.3]} 21. Rc6 {[%clk 0:01:59.3]} 21... Rb8 {[%clk 0:02:05.2]} 22. bxa5
{[%clk 0:01:50.3]} 22... Bxb5 {[%clk 0:02:04]} 23. Bxb5 {[%clk 0:01:51.2]} 23...
bxa5 {[%clk 0:02:04.1]} 24. a4 {[%clk 0:01:51.7]} 24... Ne8 {[%clk 0:01:58.5]}
25. Qd2 {[%clk 0:01:47.3]} 25... g5 {[%clk 0:01:55.3]} 26. Qxa5 {[%clk
0:01:45.2]} 26... Qf6 {[%clk 0:01:32.9]} 27. Rfc1 {[%clk 0:01:43.1]} 27... g4
{[%clk 0:01:31.5]} 28. Rc8 {[%clk 0:01:25.1]} 28... Rxc8 {[%clk 0:01:29.9]} 29.
Rxc8 {[%clk 0:01:26]} 29... Ng7 {[%clk 0:01:28.9]} 30. Qd8 {[%clk 0:01:22.6]}
30... Qg6 {[%clk 0:01:24.2]} 31. Kh1 {[%clk 0:00:46]} 31... gxf3 {[%clk
0:01:22]} 32. gxf3 {[%clk 0:00:44.1]} 32... Ng5 {[%clk 0:01:22.1]} 33. Be2
{[%clk 0:00:39.8]} 33... Nxe4 {[%clk 0:01:19.1]} 34. Bg1 {[%clk 0:00:20.7]}
34... Qh5 {[%clk 0:01:10.3]} 35. Kg2 {[%clk 0:00:11.6]} 35... Ng5 {[%clk
0:01:08.9]} 36. Rc7 {[%clk 0:00:08.6]} 36... e4 {[%clk 0:01:04.7]} 37. Rxf7
{[%clk 0:00:08.2]} 37... Qxf7 {[%clk 0:00:59.2]} 38. h4 {[%clk 0:00:07]} 38...
exf3+ {[%clk 0:00:59]} 39. Bxf3 {[%clk 0:00:06.4]} 39... Nxf3 {[%clk 0:00:59.7]}
40. Kxf3 {[%clk 0:00:07.1]} 40... Qxd5+ {[%clk 0:00:59.8]} 41. Kxf4 {[%clk
0:00:07.4]} 41... Ne6+ {[%clk 0:00:57.9]} 0-1

[Event "Early-Titled-Tuesday-Blitz-March-26-2024"]
[Site "Chess.com"]
[Date "2024.03.26"]
[Round "7"]
[White "MalyDominator"]
[Black "KVAIDAN"]
[Result "1-0"]
[WhiteElo "2572"]
[BlackElo "2358"]
[TimeControl "180+1"]
[EndTime "9:14:38 PDT"]
[Termination "MalyDominator won by checkmate"]

1. e4 {[%clk 0:03:00.9]} 1... e5 {[%clk 0:02:44.9]} 2. Nf3 {[%clk 0:02:58.1]}
2... d5 {[%clk 0:02:44.9]} 3. exd5 {[%clk 0:02:50.5]} 3... e4 {[%clk 0:02:45]}
4. Qe2 {[%clk 0:02:50.5]} 4... Nf6 {[%clk 0:02:45]} 5. d3 {[%clk 0:02:48.9]}
5... Bb4+ {[%clk 0:02:42.8]} 6. c3 {[%clk 0:02:46.5]} 6... O-O {[%clk 0:02:42]}
7. cxb4 {[%clk 0:02:44.3]} 7... exf3 {[%clk 0:02:40.7]} 8. Qxf3 {[%clk
0:02:44.7]} 8... c6 {[%clk 0:02:32.2]} 9. Bg5 {[%clk 0:02:36.8]} 9... Re8+
{[%clk 0:02:31.5]} 10. Be2 {[%clk 0:02:26.1]} 10... Bg4 {[%clk 0:02:26.7]} 11.
Qxg4 {[%clk 0:02:24.4]} 11... Nxg4 {[%clk 0:02:04]} 12. Bxd8 {[%clk 0:02:22.2]}
12... Ne5 {[%clk 0:02:04.3]} 13. Bh4 {[%clk 0:02:05.2]} 13... Nxd3+ {[%clk
0:02:03.8]} 14. Kd2 {[%clk 0:02:05.4]} 14... Nxb4 {[%clk 0:01:56.7]} 15. d6
{[%clk 0:02:05.5]} 15... Nd7 {[%clk 0:01:51.5]} 16. Bg4 {[%clk 0:01:59.8]} 16...
Re4 {[%clk 0:01:38.6]} 17. f3 {[%clk 0:01:34.1]} 17... Rd4+ {[%clk 0:01:32.6]}
18. Kc3 {[%clk 0:01:34.5]} 18... Rxd6 {[%clk 0:01:32.2]} 19. Kxb4 {[%clk
0:01:34.5]} 19... Nb6 {[%clk 0:01:23.3]} 20. Bg3 {[%clk 0:01:31.3]} 20... Rd3
{[%clk 0:01:17.6]} 21. Nc3 {[%clk 0:01:25.1]} 21... Rd2 {[%clk 0:01:17]} 22. Kb3
{[%clk 0:01:21.6]} 22... a5 {[%clk 0:01:14.7]} 23. a4 {[%clk 0:01:17.9]} 23...
Rxg2 {[%clk 0:01:12.3]} 24. Rhg1 {[%clk 0:01:12.9]} 24... Rd2 {[%clk 0:01:10.5]}
25. Rad1 {[%clk 0:01:12.9]} 25... Rad8 {[%clk 0:01:10]} 26. Rxd2 {[%clk
0:01:06.7]} 26... Rxd2 {[%clk 0:01:10.2]} 27. Rd1 {[%clk 0:01:05.5]} 27... Rxd1
{[%clk 0:01:10.2]} 28. Nxd1 {[%clk 0:01:06.4]} 28... g6 {[%clk 0:01:10.6]} 29.
Bc7 {[%clk 0:00:57.8]} 29... Nd5 {[%clk 0:01:10.1]} 30. Bxa5 {[%clk 0:00:57.5]}
30... f5 {[%clk 0:01:10.4]} 31. Bh3 {[%clk 0:00:57]} 31... Kf7 {[%clk
0:01:07.3]} 32. Bf1 {[%clk 0:00:55]} 32... Nf4 {[%clk 0:01:06.6]} 33. Bd2 {[%clk
0:00:53.8]} 33... Nh5 {[%clk 0:01:04]} 34. Ne3 {[%clk 0:00:50.4]} 34... Ke6
{[%clk 0:01:04]} 35. Nc4 {[%clk 0:00:50.7]} 35... Kd5 {[%clk 0:01:02.8]} 36. Na5
{[%clk 0:00:50.9]} 36... b6 {[%clk 0:01:01.5]} 37. Nc4 {[%clk 0:00:47.3]} 37...
b5 {[%clk 0:00:56.1]} 38. axb5 {[%clk 0:00:47.1]} 38... cxb5 {[%clk 0:00:56.6]}
39. Na5 {[%clk 0:00:45.6]} 39... Kc5 {[%clk 0:00:55.6]} 40. Be3+ {[%clk
0:00:45.6]} 40... Kd5 {[%clk 0:00:55.8]} 41. Bxb5 {[%clk 0:00:45.4]} 41... Nf6
{[%clk 0:00:55.7]} 42. Bc4+ {[%clk 0:00:45.5]} 42... Kd6 {[%clk 0:00:55.2]} 43.
Bd4 {[%clk 0:00:45.6]} 43... Nh5 {[%clk 0:00:53.4]} 44. Bg8 {[%clk 0:00:44.1]}
44... h6 {[%clk 0:00:53]} 45. Nc4+ {[%clk 0:00:44.3]} 45... Kc6 {[%clk
0:00:50.7]} 46. Ne5+ {[%clk 0:00:44.2]} 46... Kb5 {[%clk 0:00:48.4]} 47. Bc4+
{[%clk 0:00:43.1]} 47... Ka5 {[%clk 0:00:47]} 48. Nc6# {[%clk 0:00:42.5]} 1-0

[Event "Early-Titled-Tuesday-Blitz-March-26-2024"]
[Site "Chess.com"]
[Date "2024.03.26"]
[Round "7"]
[White "arenal72"]
[Black "sergoy"]
[Result "0-1"]
[WhiteElo "2614"]
[BlackElo "2908"]
[TimeControl "180+1"]
[EndTime "9:14:39 PDT"]
[Termination "sergoy won on time"]

1. Nf3 {[%clk 0:03:00.9]} 1... d5 {[%clk 0:02:59.2]} 2. g3 {[%clk 0:03:00.9]}
2... g6 {[%clk 0:02:59.8]} 3. Bg2 {[%clk 0:02:55.5]} 3... Bg7 {[%clk 0:03:00.4]}
4. O-O {[%clk 0:02:52.9]} 4... e5 {[%clk 0:03:00.5]} 5. d3 {[%clk 0:02:53]} 5...
Ne7 {[%clk 0:03:00.5]} 6. e4 {[%clk 0:02:51.2]} 6... Nbc6 {[%clk 0:03:00.1]} 7.
c3 {[%clk 0:02:51.3]} 7... O-O {[%clk 0:03:00.2]} 8. a4 {[%clk 0:02:44]} 8... h6
{[%clk 0:03:00.2]} 9. exd5 {[%clk 0:02:39.6]} 9... Nxd5 {[%clk 0:03:00.1]} 10.
Nbd2 {[%clk 0:02:37.7]} 10... Bf5 {[%clk 0:02:55.4]} 11. Nc4 {[%clk 0:02:36.3]}
11... Qd7 {[%clk 0:02:53.7]} 12. Qe2 {[%clk 0:02:26.5]} 12... Rfe8 {[%clk
0:02:53.5]} 13. Rd1 {[%clk 0:02:23.7]} 13... Rad8 {[%clk 0:02:50.6]} 14. Nh4
{[%clk 0:02:20.2]} 14... Bg4 {[%clk 0:02:47.6]} 15. Bf3 {[%clk 0:02:10]} 15...
Be6 {[%clk 0:02:47.4]} 16. Ne3 {[%clk 0:02:04.3]} 16... Nxe3 {[%clk 0:02:38.4]}
17. Bxe3 {[%clk 0:02:02.8]} 17... g5 {[%clk 0:02:38.3]} 18. Ng2 {[%clk 0:02:01]}
18... g4 {[%clk 0:02:38.5]} 19. Bxc6 {[%clk 0:01:52.3]} 19... Qxc6 {[%clk
0:02:39.4]} 20. a5 {[%clk 0:01:41.2]} 20... f5 {[%clk 0:02:29.7]} 21. Nh4 {[%clk
0:01:35]} 21... a6 {[%clk 0:02:27.5]} 22. f3 {[%clk 0:01:32.5]} 22... f4 {[%clk
0:02:20.2]} 23. Bf2 {[%clk 0:01:19.4]} 23... h5 {[%clk 0:02:12.9]} 24. Re1
{[%clk 0:01:10.2]} 24... Bf6 {[%clk 0:02:03.6]} 25. fxg4 {[%clk 0:00:52.4]}
25... hxg4 {[%clk 0:01:58]} 26. Ng6 {[%clk 0:00:44.9]} 26... Bf5 {[%clk
0:01:55.2]} 27. h4 {[%clk 0:00:35]} 27... Bxg6 {[%clk 0:01:47.9]} 28. Qxg4
{[%clk 0:00:34.6]} 28... Kh7 {[%clk 0:01:34.9]} 29. h5 {[%clk 0:00:23]} 29...
Bxd3 {[%clk 0:01:34.8]} 30. Rad1 {[%clk 0:00:14.6]} 30... Qe6 {[%clk 0:01:32.9]}
31. Qf3 {[%clk 0:00:11.4]} 31... Bf5 {[%clk 0:01:27.4]} 32. Rxd8 {[%clk
0:00:07.7]} 32... Rxd8 {[%clk 0:01:28.3]} 33. gxf4 {[%clk 0:00:08]} 33... e4
{[%clk 0:01:26.6]} 34. Qe3 {[%clk 0:00:07.4]} 34... Rg8+ {[%clk 0:01:26.8]} 35.
Kh1 {[%clk 0:00:07.7]} 35... Bg4 {[%clk 0:01:26.5]} 36. Rg1 {[%clk 0:00:03.2]}
36... Bf3+ {[%clk 0:01:24.1]} 37. Kh2 {[%clk 0:00:03.8]} 37... Rxg1 {[%clk
0:01:24.7]} 38. Kxg1 {[%clk 0:00:04.2]} 38... Qg4+ {[%clk 0:01:25]} 39. Kf1
{[%clk 0:00:04.5]} 39... Qg2+ {[%clk 0:01:19.4]} 40. Ke1 {[%clk 0:00:04.8]}
40... Qh1+ {[%clk 0:01:20]} 41. Bg1 {[%clk 0:00:05.3]} 41... Bh4+ {[%clk
0:01:19.8]} 42. Kd2 {[%clk 0:00:05.6]} 42... Qg2+ {[%clk 0:01:19.4]} 43. Kc1
{[%clk 0:00:03.8]} 43... Qf1+ {[%clk 0:01:17.6]} 0-1